bitfinex/quotes_BTCUSD_20241021
["timestamp","ask_amount","ask_price","bid_price","bid_amount"]
[1729532398932,0.046254,67676.0,67675.0,1.4988833]
[1729532399174,0.046254,67676.0,67675.0,1.4848833]
[1729532399907,0.046254,67676.0,67675.0,1.4988833]
[1729532400134,0.046254,67676.0,67675.0,1.4848833]
[1729532400410,0.046254,67676.0,67675.0,1.4988833]
[1729532400892,0.00035814,67686.0,67680.0,0.474654]
[1729532401118,0.00035814,67686.0,67680.0,1.32361315]
[1729532402140,0.0962,67711.0,67680.0,1.32361315]
[1729532402141,0.00288857,67712.0,67711.0,0.364586]
[1729532402425,0.00288857,67712.0,67711.0,0.5315835]
[1729532402928,0.00288857,67712.0,67711.0,0.436586]
[1729532403172,0.00288857,67712.0,67711.0,0.337086]
[1729532403395,0.00288857,67712.0,67711.0,0.257686]
[1729532403617,0.2270298,67733.0,67717.0,0.005]
[1729532403830,0.19491319,67730.0,67717.0,0.005]
[1729532404058,0.19491319,67730.0,67705.0,0.0813]
[1729532404059,0.29534,67719.0,67709.0,0.005]
[1729532404310,0.14895915,67719.0,67714.0,0.2220298]
[1729532404525,0.07,67718.0,67714.0,0.2220298]
[1729532404745,0.07,67718.0,67711.0,0.009]
[1729532404974,0.07,67718.0,67704.0,0.005]
[1729532404975,0.24025915,67717.0,67704.0,0.005]
[1729532405215,0.24025915,67717.0,67696.0,0.5174638]
[1729532405216,0.24025915,67717.0,67710.0,0.2220298]
[1729532405460,0.24025915,67717.0,67702.0,0.01]
[1729532405718,0.147683,67713.0,67710.0,0.2220298]
[1729532405936,0.443043,67714.0,67702.0,0.157706]
[1729532406152,0.295364,67713.0,67702.0,0.01]
[1729532406389,0.14895915,67714.0,67698.0,0.005]
[1729532406390,0.14895915,67712.0,67698.0,0.005]
[1729532406630,0.14895915,67712.0,67703.0,0.2220298]
[1729532406862,0.14769,67710.0,67703.0,0.2220298]
[1729532407110,0.14895915,67710.0,67703.0,0.2220298]
[1729532407329,0.29664815,67710.0,67703.0,0.2220298]
[1729532407545,0.44433715,67710.0,67698.0,0.01]
[1729532407760,0.147696,67707.0,67698.0,0.01]
[1729532407964,0.44433715,67710.0,67698.0,0.01]
[1729532408187,0.147697,67706.0,67698.0,0.01]
[1729532408394,0.295386,67708.0,67698.0,0.01]
[1729532408633,0.147694,67708.0,67698.0,0.01]
[1729532408863,0.295381,67709.0,67698.0,0.01]
[1729532409080,0.147694,67708.0,67698.0,0.01]
[1729532409301,0.147695,67707.0,67698.0,0.011]
[1729532409537,0.295386,67708.0,67698.0,0.011]
[1729532410000,0.14895915,67710.0,67698.0,0.001]
[1729532410001,0.147712,67699.0,67698.0,0.001]
[1729532410492,0.295451,67694.0,67688.0,0.2220298]
[1729532410736,0.1603,67702.0,67688.0,0.2220298]
[1729532410737,0.14895915,67693.0,67688.0,0.2220298]
[1729532410955,0.00903189,67693.0,67688.0,0.2220298]
[1729532411408,0.295436,67697.0,67686.0,0.14774]
[1729532411409,0.00898134,67692.0,67686.0,0.14774]
[1729532411630,0.014,67694.0,67688.0,0.001]
[1729532411855,0.00898134,67691.0,67688.0,0.001]
[1729532412108,0.29667815,67696.0,67686.0,0.14774]
[1729532412326,0.00898134,67690.0,67688.0,0.002]
[1729532412546,0.016,67693.0,67688.0,0.001]
[1729532412769,0.00898134,67689.0,67688.0,0.001]
[1729532412988,0.007,67693.0,67688.0,0.001]
[1729532413203,0.00898134,67689.0,67688.0,0.001]
[1729532413418,0.0069,67693.0,67688.0,0.001]
[1729532413638,0.00898134,67689.0,67686.0,0.2220298]
[1729532413869,0.005,67691.0,67688.0,0.001]
[1729532414316,0.00898134,67690.0,67685.0,0.147742]
[1729532414869,0.009,67693.0,67684.0,0.005]
[1729532414926,0.00898134,67689.0,67684.0,0.30049]
[1729532415131,0.00898134,67689.0,67685.0,0.147742]
[1729532415333,0.002,67691.0,67685.0,0.147742]
[1729532415535,0.002,67691.0,67686.0,0.147741]
[1729532415749,0.00998134,67690.0,67686.0,0.147741]
[1729532416094,0.00998134,67690.0,67685.0,0.147742]
[1729532416278,0.00998134,67690.0,67684.0,0.005]
[1729532416279,0.00998134,67690.0,67689.0,0.147734]
[1729532416703,0.001,67690.0,67689.0,0.147734]
[1729532417568,0.000826,67694.0,67689.0,0.147734]
[1729532417988,0.000826,67694.0,67689.0,0.001]
[1729532418406,0.00898134,67693.0,67689.0,0.003]
[1729532418615,0.00898134,67693.0,67689.0,0.005]
[1729532418852,0.00898134,67693.0,67689.0,0.002]
[1729532420276,0.00878134,67693.0,67688.0,0.005]
[1729532420977,0.01078134,67693.0,67685.0,0.005]
[1729532421248,0.15650834,67693.0,67685.0,0.005]
[1729532421458,0.15750834,67693.0,67686.0,0.2220298]
[1729532421664,0.01178134,67693.0,67686.0,0.2220298]
[1729532421884,0.01178134,67693.0,67686.0,0.25785863]
[1729532422296,0.00878134,67693.0,67686.0,0.25785863]
[1729532422765,0.00978134,67693.0,67686.0,0.25785863]
[1729532423603,0.00978134,67693.0,67686.0,0.2220298]
[1729532423838,0.01078134,67693.0,67686.0,0.2220298]
[1729532424255,0.00978134,67693.0,67686.0,0.2220298]
[1729532424673,0.01178134,67693.0,67685.0,0.152743]
[1729532425517,0.00978134,67693.0,67685.0,0.152743]
[1729532425938,0.00978134,67693.0,67685.0,0.005]
[1729532426365,0.001,67693.0,67685.0,0.005]
[1729532427029,0.003,67693.0,67685.0,0.005]
[1729532427234,0.002,67693.0,67689.0,0.147733]
[1729532427439,0.003,67693.0,67690.0,0.147732]
[1729532428141,0.003,67693.0,67692.0,0.152727]
[1729532428358,0.000826,67694.0,67693.0,0.005]
[1729532428574,0.000826,67694.0,67693.0,0.152725]
[1729532428791,0.000826,67694.0,67693.0,0.005]
[1729532429206,0.00959701,67694.0,67693.0,0.152725]
[1729532429417,0.000826,67694.0,67693.0,0.152725]
[1729532429865,0.000826,67694.0,67693.0,0.005]
[1729532430599,0.000826,67694.0,67692.0,0.002]
[1729532430849,0.148549,67694.0,67693.0,0.002]
[1729532431095,0.15735645,67694.0,67693.0,0.003]
[1729532431576,0.147733,67690.0,67687.0,0.2220298]
[1729532431830,0.295457,67692.0,67687.0,0.2220298]
[1729532432077,0.00984981,67689.0,67687.0,0.2220298]
[1729532432328,0.005826,67694.0,67684.0,0.001652]
[1729532432557,0.00984981,67688.0,67687.0,0.2220298]
[1729532432787,0.14895915,67693.0,67684.0,0.001652]
[1729532433013,0.00984981,67688.0,67684.0,0.001652]
[1729532433235,0.29668515,67693.0,67684.0,0.001652]
[1729532433456,0.00984981,67687.0,67684.0,0.001652]
[1729532433682,0.29668515,67693.0,67684.0,0.001652]
[1729532433923,0.00984981,67686.0,67684.0,0.149397]
[1729532434159,0.002,67692.0,67684.0,0.002652]
[1729532434634,0.00984981,67691.0,67684.0,0.004652]
[1729532435390,0.00984981,67691.0,67684.0,0.001652]
[1729532435630,0.15757981,67691.0,67684.0,0.001652]
[1729532435879,0.00984981,67691.0,67684.0,0.005652]
[1729532436818,0.14895915,67693.0,67684.0,0.005652]
[1729532437017,0.004,67692.0,67690.0,0.00015019]
[1729532437279,0.006,67691.0,67690.0,0.00015019]
[1729532438014,0.01386483,67691.0,67690.0,0.00015019]
[1729532438257,0.005,67691.0,67690.0,0.00015019]
[1729532438486,0.0511057,67691.0,67690.0,0.00015019]
[1729532438722,0.20770053,67691.0,67690.0,0.00015019]
[1729532438942,0.06597053,67691.0,67690.0,0.00015019]
[1729532439397,0.06097053,67691.0,67690.0,0.00015019]
[1729532439629,0.06097053,67691.0,67690.0,0.00115019]
[1729532439870,0.06597053,67691.0,67690.0,0.00115019]
[1729532440617,0.06597053,67691.0,67690.0,0.00280219]
[1729532441265,0.36265968,67691.0,67690.0,0.00280219]
[1729532442544,0.37206415,67691.0,67690.0,0.00280219]
[1729532443187,0.37196415,67691.0,67690.0,0.00280219]
[1729532444026,0.147758,67678.0,67677.0,0.2220298]
[1729532444234,0.38693913,67678.0,67677.0,0.2220298]
[1729532444442,0.35152161,67678.0,67677.0,0.2220298]
[1729532444684,0.24797003,67678.0,67675.0,0.001652]
[1729532444900,0.147762,67676.0,67675.0,0.001652]
[1729532445147,0.34272685,67676.0,67675.0,0.001652]
[1729532445490,0.35152561,67676.0,67675.0,0.001652]
[1729532446064,0.80984625,67676.0,67675.0,0.001652]
[1729532446294,0.80984625,67676.0,67655.0,0.2220298]
[1729532446295,0.147791,67663.0,67655.0,0.2220298]
[1729532446530,0.34275585,67663.0,67655.0,0.2220298]
[1729532446858,0.35353767,67663.0,67655.0,0.2220298]
[1729532447079,0.147806,67656.0,67655.0,0.2220298]
[1729532447296,0.147806,67656.0,67650.0,0.001652]
[1729532447297,0.147809,67655.0,67650.0,0.001652]
[1729532447573,0.147809,67655.0,67639.0,0.2220298]
[1729532447574,0.147813,67653.0,67639.0,0.2220298]
[1729532447820,0.147813,67653.0,67646.0,0.2220298]
[1729532447821,0.147826,67647.0,67646.0,0.2220298]
[1729532448053,0.147826,67647.0,67639.0,0.2220298]
[1729532448054,0.04608302,67647.0,67639.0,0.2220298]
[1729532448272,0.14783,67645.0,67639.0,0.2220298]
[1729532448493,0.147828,67647.0,67639.0,0.2220298]
[1729532448736,0.147828,67647.0,67636.0,0.0828]
[1729532448737,0.01069553,67644.0,67636.0,0.0828]
[1729532448978,0.15965468,67643.0,67636.0,0.0828]
[1729532449277,0.15965468,67643.0,67637.0,0.2220298]
[1729532449514,0.147837,67642.0,67637.0,0.2220298]
[1729532449755,0.14895915,67641.0,67637.0,0.2220298]
[1729532449988,0.15947039,67641.0,67637.0,0.2220298]
[1729532450215,0.15947039,67641.0,67639.0,0.001]
[1729532451332,0.16347039,67641.0,67639.0,0.001]
[1729532451554,0.147843,67640.0,67631.0,0.005]
[1729532451814,0.45514939,67641.0,67631.0,0.005]
[1729532451815,0.147845,67638.0,67631.0,0.005]
[1729532452036,0.14895915,67638.0,67631.0,0.005]
[1729532452476,0.01051124,67637.0,67631.0,0.005]
[1729532452929,0.01051124,67637.0,67633.0,0.005]
[1729532454934,0.01451124,67637.0,67633.0,0.005]
[1729532455135,0.01051124,67637.0,67633.0,0.005]
[1729532456232,0.005,67652.0,67636.0,0.2220298]
[1729532456376,0.14895915,67651.0,67640.0,0.005]
[1729532456574,0.14895915,67651.0,67640.0,0.15284]
[1729532456985,0.14782,67650.0,67643.0,0.005]
[1729532457189,0.14895915,67649.0,67643.0,0.005]
[1729532458588,0.15795915,67649.0,67643.0,0.005]
[1729532459001,0.15795915,67649.0,67643.0,0.006]
[1729532459610,0.15795915,67649.0,67643.0,0.005]
[1729532459780,0.14895915,67649.0,67643.0,0.005]
[1729532459986,0.16495915,67649.0,67643.0,0.006]
[1729532460412,0.16495915,67649.0,67643.0,0.153834]
[1729532461094,0.15695915,67649.0,67643.0,0.001]
[1729532461317,0.147824,67648.0,67643.0,0.001]
[1729532461520,0.16395915,67649.0,67643.0,0.001]
[1729532461521,0.14895915,67647.0,67643.0,0.001]
[1729532461733,0.147828,67646.0,67643.0,0.001]
[1729532461917,0.015,67649.0,67643.0,0.001]
[1729532461918,0.14895915,67645.0,67643.0,0.001]
[1729532462371,0.14895915,67645.0,67641.0,0.147838]
[1729532462576,0.14895915,67645.0,67639.0,0.005]
[1729532462789,0.14895915,67645.0,67643.0,0.001]
[1729532463002,0.007,67649.0,67644.0,0.0783]
[1729532463229,0.005,67656.0,67644.0,0.0783]
[1729532463460,0.14895915,67655.0,67644.0,0.0783]
[1729532463678,0.004,67645.0,67644.0,0.226131]
[1729532464111,0.008,67649.0,67645.0,0.147828]
[1729532464344,0.008,67649.0,67646.0,0.147827]
[1729532465270,0.000827,67650.0,67646.0,0.147828]
[1729532465491,0.14978615,67650.0,67646.0,0.147828]
[1729532466145,0.005,67649.0,67646.0,0.147828]
[1729532466349,0.005,67649.0,67647.0,0.147825]
[1729532466556,0.000827,67650.0,67645.0,0.29566]
[1729532466771,0.000827,67650.0,67646.0,0.147828]
[1729532466981,0.003827,67650.0,67646.0,0.147828]
[1729532467202,0.006827,67650.0,67646.0,0.147828]
[1729532467421,0.000827,67650.0,67646.0,0.147828]
[1729532467628,0.001,67649.0,67646.0,0.147828]
[1729532467836,0.001,67649.0,67647.0,0.147825]
[1729532468490,0.001,67649.0,67646.0,0.147827]
[1729532468727,0.001,67649.0,67647.0,0.147824]
[1729532468954,0.002827,67650.0,67647.0,0.147824]
[1729532469423,0.004827,67650.0,67647.0,0.147824]
[1729532469663,0.000827,67650.0,67649.0,0.147821]
[1729532469898,0.000827,67650.0,67649.0,0.433921]
[1729532470816,0.002827,67650.0,67649.0,0.61088015]
[1729532471048,0.000827,67676.0,67668.0,0.22958]
[1729532471304,0.000827,67676.0,67668.0,0.23958]
[1729532471554,0.000827,67676.0,67672.0,0.295542]
[1729532471804,0.000827,67676.0,67675.0,0.147765]
[1729532472069,0.000827,67676.0,67675.0,0.152765]
[1729532472651,0.000827,67676.0,67675.0,0.157765]
[1729532473354,0.000827,67676.0,67675.0,0.160765]
[1729532473816,0.000827,67676.0,67675.0,0.157765]
[1729532474049,0.006827,67676.0,67675.0,0.157765]
[1729532474508,0.003827,67676.0,67675.0,0.157765]
[1729532474738,0.003827,67676.0,67675.0,0.158765]
[1729532474977,0.003827,67676.0,67675.0,0.157765]
[1729532475438,0.002827,67676.0,67675.0,0.157765]
[1729532475666,0.004827,67676.0,67675.0,0.157765]
[1729532476193,0.002827,67676.0,67675.0,0.152765]
[1729532476640,0.000827,67676.0,67675.0,0.153765]
[1729532476811,0.000827,67676.0,67675.0,0.158765]
[1729532477028,0.000827,67676.0,67675.0,0.159765]
[1729532478454,0.000827,67676.0,67675.0,0.158765]
[1729532478900,0.000827,67676.0,67675.0,0.160765]
[1729532479366,0.000827,67676.0,67675.0,0.158765]
[1729532479606,0.003827,67676.0,67675.0,0.157765]
[1729532480046,0.000827,67676.0,67675.0,0.158765]
[1729532480250,0.000827,67676.0,67675.0,0.157765]
[1729532480466,0.000827,67676.0,67675.0,0.237865]
[1729532480903,0.000827,67676.0,67675.0,0.240865]
[1729532481350,0.000827,67676.0,67675.0,0.239865]
[1729532481591,0.000827,67676.0,67675.0,0.240865]
[1729532482507,0.000827,67676.0,67675.0,0.237865]
[1729532483369,0.000827,67676.0,67675.0,0.236865]
[1729532483633,0.000827,67676.0,67675.0,0.239865]
[1729532484021,0.000827,67676.0,67675.0,0.236865]
[1729532484239,0.001827,67676.0,67675.0,0.241865]
[1729532484460,0.001827,67676.0,67675.0,0.236865]
[1729532484940,0.002827,67676.0,67675.0,0.241865]
[1729532485151,0.002827,67676.0,67675.0,0.246865]
[1729532485585,0.002827,67676.0,67675.0,0.241865]
[1729532485809,0.002827,67676.0,67675.0,0.0891]
[1729532486033,0.002827,67676.0,67675.0,0.009]
[1729532486500,0.002827,67676.0,67675.0,0.005]
[1729532486728,0.002827,67676.0,67675.0,0.014]
[1729532486946,0.000827,67676.0,67675.0,0.004]
[1729532487169,0.00955411,67676.0,67675.0,0.004]
[1729532487393,0.000827,67676.0,67675.0,0.009]
[1729532487628,0.000827,67676.0,67675.0,0.004]
[1729532487846,0.000827,67676.0,67675.0,0.009]
[1729532488052,0.01173588,67676.0,67675.0,0.004]
[1729532488261,0.01173588,67676.0,67674.0,0.005]
[1729532488506,0.01473588,67676.0,67674.0,0.005]
[1729532488697,0.003827,67676.0,67675.0,0.151765]
[1729532489114,0.003827,67676.0,67675.0,0.147765]
[1729532489326,0.003827,67676.0,67674.0,0.005]
[1729532489541,0.005827,67676.0,67674.0,0.005]
[1729532489743,0.01089131,67675.0,67671.0,0.005]
[1729532489947,0.000827,67676.0,67670.0,0.2220298]
[1729532490162,0.002827,67676.0,67673.0,0.005]
[1729532490371,0.01089131,67675.0,67673.0,0.005]
[1729532490576,0.000827,67676.0,67673.0,0.005]
[1729532490789,0.15178615,67676.0,67671.0,0.005]
[1729532491018,0.01089131,67675.0,67673.0,0.005]
[1729532491225,0.0107134,67675.0,67672.0,0.14777]
[1729532491458,0.006827,67676.0,67673.0,0.005]
[1729532491665,0.002827,67676.0,67673.0,0.005]
[1729532491873,0.000827,67676.0,67673.0,0.005]
[1729532492078,0.001,67675.0,67673.0,0.005]
[1729532492552,0.000827,67676.0,67673.0,0.16592888]
[1729532492762,0.000827,67676.0,67675.0,0.152765]
[1729532492975,0.004827,67676.0,67675.0,0.152765]
[1729532493187,0.002827,67676.0,67675.0,0.152765]
[1729532493611,0.002827,67676.0,67675.0,0.239165]
[1729532494248,0.000827,67676.0,67675.0,0.240165]
[1729532494460,0.001827,67676.0,67675.0,0.239165]
[1729532494877,0.001827,67676.0,67675.0,0.243165]
[1729532495109,0.000827,67676.0,67675.0,0.243165]
[1729532496169,0.000827,67676.0,67675.0,0.239165]
[1729532496592,0.000827,67676.0,67675.0,0.244165]
[1729532497019,0.000827,67676.0,67675.0,0.245165]
[1729532497238,0.000827,67676.0,67675.0,0.244165]
[1729532497677,0.000827,67676.0,67675.0,0.249165]
[1729532497678,0.001827,67676.0,67675.0,0.249165]
[1729532497883,0.000827,67676.0,67675.0,0.239165]
[1729532498298,0.000827,67676.0,67675.0,0.243165]
[1729532498728,0.000827,67676.0,67675.0,0.239165]
[1729532498967,0.000827,67676.0,67675.0,0.244165]
[1729532499379,0.000827,67676.0,67675.0,0.248165]
[1729532499591,0.000827,67676.0,67675.0,0.239165]
[1729532500046,0.001827,67676.0,67675.0,0.249165]
[1729532500257,0.000827,67676.0,67675.0,0.244165]
[1729532500689,0.001827,67676.0,67675.0,0.244165]
[1729532501270,0.001827,67676.0,67675.0,0.239165]
[1729532501475,0.002827,67676.0,67675.0,0.244165]
[1729532501687,0.002827,67676.0,67675.0,0.249165]
[1729532502767,0.000827,67676.0,67675.0,0.239165]
[1729532502965,0.000827,67676.0,67675.0,0.244165]
[1729532503182,0.001827,67676.0,67675.0,0.249165]
[1729532504444,0.001827,67676.0,67675.0,0.244165]
[1729532504821,0.001827,67676.0,67675.0,0.250165]
[1729532510360,0.000827,67676.0,67675.0,0.245165]
[1729532510602,0.001827,67676.0,67675.0,0.244165]
[1729532510823,0.001827,67676.0,67675.0,0.250165]
[1729532511036,0.000827,67676.0,67675.0,0.245165]
[1729532511253,0.000827,67676.0,67675.0,0.239165]
[1729532511687,0.000827,67676.0,67675.0,0.245165]
[1729532512303,0.001827,67676.0,67675.0,0.251165]
[1729532513367,0.001827,67676.0,67675.0,0.252817]
[1729532522150,0.001827,67676.0,67675.0,0.105052]
[1729532522626,0.001827,67676.0,67675.0,0.252817]
[1729532523749,0.001827,67676.0,67675.0,0.105052]
[1729532523968,0.001827,67676.0,67675.0,0.252817]
[1729532525472,0.001827,67676.0,67675.0,0.105052]
[1729532525708,0.001827,67676.0,67675.0,0.252817]
[1729532526359,0.001827,67676.0,67675.0,0.105052]
[1729532526589,0.04117943,67684.0,67678.0,0.005]
[1729532526788,0.04622315,67683.0,67679.0,0.005]
[1729532526998,0.05711081,67683.0,67679.0,0.005]
[1729532527202,0.04622315,67682.0,67679.0,0.005]
[1729532528022,0.04622315,67683.0,67679.0,0.005]
[1729532528211,0.01088766,67681.0,67679.0,0.005]
[1729532528469,0.04622315,67680.0,67679.0,0.005]
[1729532528703,0.04622315,67684.0,67679.0,0.005]
[1729532528908,0.1137518,67683.0,67679.0,0.005]
[1729532529124,0.01088766,67680.0,67679.0,0.005]
[1729532529335,0.1951823,67680.0,67679.0,0.005]
[1729532529752,0.04622315,67680.0,67679.0,0.006]
[1729532529961,0.01088766,67680.0,67679.0,0.005]
[1729532530181,0.1127518,67682.0,67679.0,0.005]
[1729532530182,0.04622315,67681.0,67679.0,0.005]
[1729532530407,0.05711081,67680.0,67679.0,0.005]
[1729532530845,0.05711081,67680.0,67679.0,0.007]
[1729532531074,0.05711081,67680.0,67679.0,0.002]
[1729532531306,0.05711081,67680.0,67679.0,0.007]
[1729532531785,0.05711081,67680.0,67679.0,0.009]
[1729532532511,0.05711081,67680.0,67679.0,0.007]
[1729532532731,0.06211081,67680.0,67679.0,0.005]
[1729532533160,0.05711081,67680.0,67679.0,0.005]
[1729532533407,0.06111081,67680.0,67679.0,0.005]
[1729532534284,0.05022315,67680.0,67679.0,0.005]
[1729532534486,0.06110092,67680.0,67679.0,0.005]
[1729532536696,0.10629201,67680.0,67679.0,0.005]
[1729532537832,0.06192692,67680.0,67679.0,0.005]
[1729532538289,0.05792692,67680.0,67679.0,0.005]
[1729532538510,0.10529668,67680.0,67679.0,0.005]
[1729532539000,0.06092692,67680.0,67679.0,0.4149026]
[1729532539247,0.01770377,67680.0,67679.0,0.4149026]
[1729532539470,0.000826,67680.0,67679.0,0.4149026]
[1729532539921,0.003826,67680.0,67679.0,0.4149026]
[1729532540147,0.000826,67680.0,67679.0,0.4149026]
[1729532540382,0.000826,67680.0,67679.0,0.4169026]
[1729532540608,0.000826,67680.0,67679.0,0.4149026]
[1729532540850,0.000826,67680.0,67679.0,0.91449155]
[1729532541087,0.000826,67680.0,67679.0,0.70446175]
[1729532541549,0.001826,67680.0,67679.0,0.71346175]
[1729532541770,0.000826,67680.0,67679.0,0.70446175]
[1729532542223,0.001826,67680.0,67679.0,0.70546175]
[1729532542477,0.000826,67680.0,67679.0,0.69246175]
[1729532542696,0.000826,67680.0,67679.0,0.64291515]
[1729532542912,0.001826,67680.0,67679.0,0.64291515]
[1729532543130,0.001826,67680.0,67679.0,0.64040454]
[1729532543346,0.001826,67680.0,67679.0,0.65440454]
[1729532543808,0.001826,67680.0,67679.0,1.35440454]
[1729532545377,0.001826,67680.0,67679.0,1.50336369]
[1729532546245,0.001826,67680.0,67679.0,1.53300369]
[1729532546464,0.001826,67680.0,67679.0,1.50336369]
[1729532547750,0.001826,67680.0,67679.0,1.50501569]
[1729532550432,0.001826,67680.0,67679.0,1.35605654]
[1729532551710,0.001826,67680.0,67679.0,1.35805654]
[1729532552148,0.001826,67680.0,67679.0,1.35605654]
[1729532553480,0.001826,67680.0,67679.0,1.159608]
[1729532554152,0.001826,67680.0,67679.0,1.164608]
[1729532554591,0.001826,67680.0,67679.0,0.464608]
[1729532558292,0.001826,67680.0,67679.0,0.459608]
[1729532559204,0.001826,67680.0,67679.0,0.464608]
[1729532559625,0.001826,67680.0,67679.0,0.88657295]
[1729532559853,0.001826,67680.0,67679.0,0.66454315]
[1729532560296,0.001826,67680.0,67679.0,0.63656715]
[1729532561223,0.001826,67680.0,67679.0,0.64856715]
[1729532561685,0.2220298,67691.0,67690.0,0.280732]
[1729532561919,0.2220298,67691.0,67690.0,0.363332]
[1729532562149,0.2205078,67702.0,67701.0,0.147708]
[1729532562627,0.2220298,67709.0,67701.0,0.147706]
[1729532562860,0.295367,67713.0,67696.0,0.300438]
[1729532562861,0.295367,67713.0,67697.0,0.295434]
[1729532563086,0.147688,67711.0,67701.0,0.147707]
[1729532563324,0.147688,67711.0,67700.0,0.295417]
[1729532563325,0.14895915,67710.0,67702.0,0.147706]
[1729532563563,0.14895915,67710.0,67701.0,0.147707]
[1729532563800,0.29664815,67710.0,67700.0,0.295417]
[1729532564009,0.14895915,67710.0,67696.0,0.005]
[1729532564241,0.147699,67705.0,67698.0,0.2220298]
[1729532564510,0.24075915,67704.0,67698.0,0.2220298]
[1729532565240,0.24075915,67704.0,67696.0,0.005]
[1729532565241,0.147704,67703.0,67700.0,0.001]
[1729532565465,0.14895915,67702.0,67696.0,0.005]
[1729532565668,0.29666515,67702.0,67696.0,0.005]
[1729532565870,0.44437215,67702.0,67696.0,0.005]
[1729532566094,0.368216,67701.0,67696.0,0.005]
[1729532566321,0.29667115,67700.0,67696.0,0.005]
[1729532566522,0.29667115,67700.0,67689.0,0.247734]
[1729532566523,0.29667115,67700.0,67689.0,0.252734]
[1729532566765,0.29667115,67700.0,67696.0,0.005]
[1729532567249,0.14895915,67700.0,67696.0,0.007]
[1729532567725,0.14895915,67700.0,67696.0,0.006]
[1729532567953,0.29666915,67700.0,67696.0,0.006]
[1729532568174,0.29666915,67700.0,67696.0,0.005]
[1729532568465,0.29667015,67700.0,67696.0,0.005]
[1729532568680,0.29667015,67700.0,67696.0,0.011]
[1729532568681,0.04608779,67699.0,67696.0,0.011]
[1729532568922,0.04608779,67699.0,67696.0,0.006]
[1729532568923,0.147717,67697.0,67696.0,0.006]
[1729532569186,0.55786965,67697.0,67696.0,0.003]
[1729532569432,0.51366394,67697.0,67696.0,0.003]
[1729532569892,0.14773,67691.0,67690.0,0.2220298]
[1729532570116,0.34277694,67691.0,67690.0,0.2220298]
[1729532570357,0.34277694,67691.0,67681.0,0.005]
[1729532570358,0.147733,67690.0,67681.0,0.005]
[1729532570576,0.19504694,67689.0,67681.0,0.005]
[1729532570789,0.19504694,67689.0,67680.0,0.2220298]
[1729532570790,0.14774,67687.0,67680.0,0.2220298]
[1729532571039,0.19504694,67686.0,67681.0,0.005]
[1729532571273,0.14895915,67686.0,67681.0,0.005]
[1729532571499,0.0461057,67685.0,67684.0,0.147745]
[1729532571743,0.008,67690.0,67683.0,0.295495]
[1729532571962,0.008,67690.0,67689.0,0.147734]
[1729532573274,0.005,67700.0,67687.0,0.295476]
[1729532573494,0.19508432,67699.0,67690.0,0.147731]
[1729532573714,0.19384017,67698.0,67689.0,0.003]
[1729532573942,0.19508432,67697.0,67689.0,0.150733]
[1729532574067,0.04612517,67696.0,67689.0,0.150733]
[1729532574302,0.14895915,67695.0,67689.0,0.147733]
[1729532574497,0.04612517,67694.0,67689.0,0.147733]
[1729532574726,0.04612517,67694.0,67688.0,0.2220298]
[1729532574727,0.04612517,67694.0,67690.0,0.001]
[1729532574930,0.04612517,67694.0,67690.0,0.148731]
[1729532574931,0.00916202,67693.0,67690.0,0.148731]
[1729532575134,0.04612517,67692.0,67690.0,0.148731]
[1729532575353,0.04612517,67691.0,67690.0,0.001]
[1729532575557,0.04612415,67691.0,67690.0,0.001]
[1729532575779,0.04612415,67694.0,67690.0,0.001]
[1729532576008,0.00916202,67693.0,67689.0,0.147733]
[1729532576210,0.04612415,67692.0,67689.0,0.147733]
[1729532576415,0.04612415,67692.0,67687.0,0.147738]
[1729532576615,0.00916202,67691.0,67688.0,0.147735]
[1729532576853,0.14895915,67695.0,67688.0,0.147735]
[1729532577023,0.04712313,67694.0,67687.0,0.295477]
[1729532577231,0.05528515,67693.0,67689.0,0.147734]
[1729532577438,0.04612313,67692.0,67689.0,0.147734]
[1729532577988,0.00916202,67691.0,67689.0,0.147734]
[1729532578198,0.04612313,67693.0,67689.0,0.147734]
[1729532578409,0.05528375,67692.0,67689.0,0.147734]
[1729532578617,0.00916202,67692.0,67689.0,0.147734]
[1729532578825,0.14895915,67695.0,67689.0,0.147734]
[1729532579031,0.05528279,67694.0,67688.0,0.147736]
[1729532579246,0.04612077,67693.0,67685.0,0.005]
[1729532579468,0.04612077,67693.0,67685.0,0.152742]
[1729532579701,0.04612077,67693.0,67689.0,0.001]
[1729532579951,0.05528279,67692.0,67689.0,0.486583]
[1729532580166,0.05528279,67692.0,67689.0,0.487583]
[1729532580167,0.04612077,67691.0,67689.0,0.487583]
[1729532580622,0.00916202,67690.0,67689.0,0.486583]
[1729532580870,0.04612077,67690.0,67689.0,0.486583]
[1729532581079,0.04612077,67694.0,67689.0,0.486583]
[1729532581295,0.04612077,67693.0,67689.0,0.486583]
[1729532581515,0.00916202,67693.0,67689.0,0.486583]
[1729532581720,0.04612077,67692.0,67689.0,0.487583]
[1729532582148,0.04612077,67692.0,67689.0,0.635316]
[1729532582382,0.05528279,67691.0,67689.0,0.487583]
[1729532582611,0.00416202,67691.0,67689.0,0.487583]
[1729532582822,0.00832868,67690.0,67689.0,0.489583]
[1729532583056,0.19321206,67695.0,67689.0,0.487583]
[1729532583287,0.00832868,67690.0,67689.0,0.489235]
[1729532583569,0.14895915,67695.0,67689.0,0.489235]
[1729532583750,0.14895915,67695.0,67689.0,0.488235]
[1729532583751,0.00832868,67690.0,67689.0,0.488235]
[1729532583983,0.14895915,67695.0,67689.0,0.491235]
[1729532584192,0.04611977,67694.0,67689.0,0.491235]
[1729532584367,0.00837103,67693.0,67689.0,0.491235]
[1729532584587,0.04611977,67692.0,67689.0,0.493235]